fUST/lending_fUST_20250227
["ID","MTS","AMOUNT","RATE_DAILY","PERIOD"]
[354708452,1740634258550,-500.0,0.00048493,120]
[354708453,1740634258560,-500.0,0.00048493,120]
[354708454,1740634258569,-499.16680549,0.00048493,120]
[354708455,1740634258579,-500.0,0.00048493,120]
[354708456,1740634258588,-500.0,0.00048493,120]
[354708457,1740634258598,-740.15,0.00048493,120]
[354708458,1740634258607,-500.0,0.00048493,120]
[354708459,1740634258616,-546.8,0.00048493,120]
[354708460,1740634258626,-500.0,0.00048493,120]
[354708461,1740634258635,-1204.46,0.00048493,120]
[354708462,1740634258644,-500.0,0.00048493,120]
[354708463,1740634258653,-574.98,0.00048493,120]
[354708464,1740634258662,-664.31,0.00048493,120]
[354708465,1740634258671,-1070.31,0.00048493,120]
[354708466,1740634258682,-856.2,0.00048493,120]
[354708467,1740634258692,-608.27,0.00048493,120]
[354708468,1740634258701,-500.0,0.00048493,120]
[354708469,1740634258710,-500.0,0.00048493,120]
[354708470,1740634258719,-500.0,0.00048493,120]
[354708471,1740634258728,-540.82,0.00048493,120]
[354708472,1740634258738,-545.65,0.00048493,120]
[354708473,1740634258747,-500.0,0.00048493,120]
[354708474,1740634258756,-622.77,0.00048493,120]
[354708475,1740634258765,-500.0,0.00048493,120]
[354708476,1740634258775,-665.98,0.00048493,120]
[354708477,1740634258784,-2168.29,0.00048493,120]
[354708478,1740634258793,-542.81,0.00048493,120]
[354708479,1740634258802,-500.0,0.00048493,120]
[354708480,1740634258811,-500.0,0.00048493,120]
[354708481,1740634258820,-1401.0,0.00048493,120]
[354708482,1740634258832,-1378.04,0.00048493,120]
[354708483,1740634258842,-2059.23,0.00048493,120]
[354708484,1740634258852,-500.0,0.00048493,120]
[354708485,1740634258861,-493.12765501,0.00048493,120]
[354708486,1740634258871,-3056.99,0.00048493,120]
[354708487,1740634258880,-703.26,0.00048493,120]
[354708488,1740634258889,-513.18,0.00048493,120]
[354708489,1740634258898,-1125.11,0.00048493,120]
[354708490,1740634258909,-624.15,0.00048493,120]
[354708491,1740634258918,-927.74,0.00048493,120]
[354708492,1740634258928,-968.47,0.00048493,120]
[354708493,1740634258937,-500.0,0.00048493,120]
[354708494,1740634258947,-500.0,0.00048493,120]
[354708495,1740634258957,-500.0,0.00048493,120]
[354708496,1740634258966,-1827.53,0.00048493,120]
[354708497,1740634258976,-641.43,0.00048493,120]
[354708498,1740634258986,-500.0,0.00048493,120]
[354708499,1740634258995,-1244.5,0.00048493,120]
[354708500,1740634259005,-1022.83,0.00048493,120]
[354708501,1740634259015,-500.0,0.00048493,120]
[354708502,1740634259025,-500.0,0.00048493,120]
[354708503,1740634259035,-2414.2,0.00048493,120]
[354708504,1740634259045,-1350.33,0.00048493,120]
[354708505,1740634259054,-500.0,0.00048493,120]
[354708506,1740634259064,-500.0,0.00048493,120]
[354708507,1740634259073,-1208.45,0.00048493,120]
[354708508,1740634259082,-500.0,0.00048493,120]
[354708509,1740634259092,-500.0,0.00048493,120]
[354708510,1740634259102,-1202.55,0.00048493,120]
[354708511,1740634259111,-500.0,0.00048493,120]
[354708512,1740634259122,-649.71,0.00048493,120]
[354708513,1740634259131,-678.75,0.00048493,120]
[354708514,1740634259141,-914.63,0.00048493,120]
[354708515,1740634259150,-500.0,0.00048493,120]
[354708516,1740634259160,-1064.44,0.00048493,120]
[354708517,1740634259170,-514.65,0.00048493,120]
[354708518,1740634259179,-628.82,0.00048493,120]
[354708519,1740634259189,-500.0,0.00048493,120]
[354708520,1740634259199,-500.0,0.00048493,120]
[354708521,1740634259208,-500.0,0.00048493,120]
[354708522,1740634259218,-597.6,0.00048493,120]
[354708523,1740634259228,-1847.81,0.00048493,120]
[354708524,1740634259238,-2005.55,0.00048493,120]
[354708525,1740634259247,-500.0,0.00048493,120]
[354708526,1740634259257,-887.24,0.00048493,120]
[354708527,1740634259267,-766.99,0.00048493,120]
[354708528,1740634259276,-500.0,0.00048493,120]
[354708529,1740634259285,-500.0,0.00048493,120]
[354708530,1740634259294,-670.73,0.00048493,120]
[354708531,1740634259304,-1586.19,0.00048493,120]
[354708532,1740634259313,-500.0,0.00048493,120]
[354708533,1740634259322,-569.88,0.00048493,120]
[354708534,1740634259332,-681.29,0.00048493,120]
[354708535,1740634259341,-500.0,0.00048493,120]
[354708536,1740634259351,-511.59,0.00048493,120]
[354708537,1740634259360,-661.44,0.00048493,120]
[354708538,1740634259520,-500.0,0.00048493,120]
[354708539,1740634259530,-786.98,0.00048493,120]
[354708540,1740634259540,-500.0,0.00048493,120]
[354708541,1740634259552,-500.0,0.00048493,120]
[354708542,1740634259563,-500.0,0.00048493,120]
[354708543,1740634259573,-680.71,0.00048493,120]
[354708544,1740634259583,-838.2174477,0.00048493,120]
[354708545,1740634259744,-131.8125523,0.00048493,120]
[354708546,1740634259753,-637.97963619,0.00048493,120]
[354708547,1740634259919,-500.0,0.00046575,120]
[354708548,1740634259928,-515.56,0.00046575,120]
[354708549,1740634259938,-500.0,0.00046575,120]
[354708550,1740634259947,-515.56,0.00046849,120]
[354708551,1740634259957,-515.56,0.00047123,120]
[354708552,1740634259967,-51.83036381,0.00048493,120]
[354708553,1740634259976,-1129.73,0.00048493,120]
[354708554,1740634259985,-2173.28,0.00048493,120]
[354708555,1740634259995,-500.0,0.00048493,120]
[354708556,1740634260004,-650.37,0.00048493,120]
[354708557,1740634260014,-640.62,0.00048493,120]
[354708558,1740634260023,-545.55,0.00048493,120]
[354708559,1740634260033,-989.96,0.00048493,120]
[354708560,1740634260043,-500.0,0.00048493,120]
[354708561,1740634260054,-806.1,0.00048493,120]
[354708562,1740634260064,-566.56,0.00048493,120]
[354708563,1740634260074,-500.0,0.00048493,120]
[354708564,1740634260084,-500.0,0.00048493,120]
[354708565,1740634260094,-500.0,0.00048493,120]
[354708566,1740634260103,-887.06,0.00048493,120]
[354708567,1740634260114,-1058.24,0.00048493,120]
[354708568,1740634260124,-500.0,0.00048493,120]
[354708569,1740634260134,-500.0,0.00048493,120]
[354708570,1740634260145,-5695.28,0.00048493,120]
[354708571,1740634260156,-500.0,0.00048493,120]
[354708572,1740634260167,-500.0,0.00048493,120]
[354708573,1740634260176,-516.57,0.00048493,120]
[354708574,1740634260186,-500.0,0.00048493,120]
[354708575,1740634260196,-512.1,0.00048493,120]
[354708576,1740634260206,-1766.38,0.00048493,120]
[354708577,1740634260216,-579.37041712,0.00048493,120]
[354708578,1740634260228,-577.72,0.00048493,120]
[354708579,1740634260238,-977.28,0.00048493,120]
[354708580,1740634260248,-580.0,0.00048493,120]
[354708581,1740634260257,-2472.16681073,0.00048493,120]
[354708582,1740634260272,-16660.00002,0.00048493,120]
[354708607,1740635193162,-491.85009645,0.00040695,2]
[354708652,1740635436053,-21814.96724835,0.00040695,2]
[354708654,1740635436062,-160.0,0.00045089,3]
[354708656,1740635436072,-207.69235522,0.000459,10]
[354708658,1740635436081,-157.242,0.00046298,76]
[354708660,1740635436090,-247.25817047,0.00046393,2]
[354708662,1740635436099,-157.96277265,0.00046475,2]
[354708664,1740635436109,-1318.34525128,0.000465,2]
[354708666,1740635436118,-2389.30335217,0.0004657,120]
[354708668,1740635436127,-500.0,0.00046573,10]
[354708670,1740635436136,-5000.0,0.00046574,120]
[354708672,1740635436145,-500.0,0.00046574,2]
[354708674,1740635436155,-500.0,0.00046574,2]
[354708676,1740635436164,-500.0,0.00046574,2]
[354708678,1740635436173,-500.0,0.00046574,2]
[354708680,1740635436182,-500.0,0.00046574,2]
[354708682,1740635436192,-500.0,0.00046574,2]
[354708684,1740635436202,-500.0,0.00046574,2]
[354708686,1740635436212,-500.0,0.00046574,2]
[354708688,1740635436221,-500.0,0.00046574,2]
[354708690,1740635436235,-500.0,0.00046574,2]
[354708692,1740635436245,-500.0,0.00046574,2]
[354708694,1740635436254,-500.0,0.00046574,2]
[354708696,1740635436263,-500.0,0.00046574,2]
[354708698,1740635436273,-500.0,0.00046574,2]
[354708700,1740635436282,-500.0,0.00046574,2]
[354708702,1740635436292,-500.0,0.00046574,2]
[354708704,1740635436302,-500.0,0.00046574,2]
[354708705,1740635436311,-500.0,0.00046574,2]
[354708706,1740635436320,-500.0,0.00046574,2]
[354708707,1740635436330,-500.0,0.00046574,2]
[354708708,1740635436339,-500.0,0.00046574,2]
[354708709,1740635436349,-500.0,0.00046574,2]
[354708710,1740635436358,-500.0,0.00046574,2]
[354708711,1740635436367,-500.0,0.00046574,2]
[354708712,1740635436377,-144.39716415,0.00046574,2]
[354708713,1740635436389,-355.60283585,0.00046574,2]
[354708714,1740635436398,-500.0,0.00046574,2]
[354708715,1740635436411,-500.0,0.00046574,2]
[354708716,1740635436421,-500.0,0.00046574,2]
[354708717,1740635436430,-500.0,0.00046574,2]
[354708718,1740635436439,-500.0,0.00046574,2]
[354708719,1740635436449,-500.0,0.00046574,2]
[354708720,1740635436458,-500.0,0.00046574,2]
[354708721,1740635436468,-500.0,0.00046574,2]
[354708722,1740635436478,-500.0,0.00046574,2]
[354708723,1740635436489,-500.0,0.00046574,2]
[354708724,1740635436498,-500.0,0.00046574,2]
[354708725,1740635436507,-500.0,0.00046574,2]
[354708726,1740635436517,-500.0,0.00046574,2]
[354708727,1740635436527,-500.0,0.00046574,2]
[354708728,1740635436537,-500.0,0.00046574,2]
[354708729,1740635436550,-500.0,0.00046574,2]
[354708730,1740635436561,-500.0,0.00046574,2]
[354708731,1740635436570,-500.0,0.00046574,2]
[354708732,1740635436581,-500.0,0.00046574,2]
[354708733,1740635436591,-500.0,0.00046574,2]
[354708734,1740635436600,-500.0,0.00046574,2]
[354708735,1740635436610,-500.0,0.00046574,2]
[354708736,1740635436621,-500.0,0.00046574,2]
[354708737,1740635436631,-500.0,0.00046574,2]
[354708738,1740635436641,-500.0,0.00046574,2]
[354708739,1740635436651,-500.0,0.00046574,2]
[354708740,1740635436661,-500.0,0.00046574,2]
[354708741,1740635436671,-500.0,0.00046574,2]
[354708742,1740635436679,-500.0,0.00046574,2]
[354708743,1740635436689,-500.0,0.00046574,2]
[354708744,1740635436699,-500.0,0.00046574,2]
[354708745,1740635436710,-500.0,0.00046574,2]
[354708746,1740635436719,-500.0,0.00046574,2]
[354708747,1740635436728,-300.29176413,0.00046574,2]
[354708748,1740635436746,-199.70823587,0.00046574,2]
[354708749,1740635436755,-185.96176432,0.00046574,2]
[354708779,1740635438868,-314.03823568,0.00046574,2]
[354708780,1740635438878,-390.21418194,0.00046574,2]
[354708784,1740635440808,-109.78581806,0.00046574,2]
[354708785,1740635440818,-500.0,0.00046574,2]
[354708786,1740635440827,-500.0,0.00046574,2]
[354708787,1740635440836,-500.0,0.00046574,2]
[354708788,1740635440845,-500.0,0.00046574,2]
[354708789,1740635440854,-500.0,0.00046574,2]
[354708790,1740635440863,-500.0,0.00046574,2]
[354708791,1740635440872,-500.0,0.00046574,2]
[354708792,1740635440881,-500.0,0.00046574,2]
[354708793,1740635440890,-500.0,0.00046574,2]
[354708794,1740635440899,-500.0,0.00046574,2]
[354708795,1740635440909,-500.0,0.00046574,2]
[354708796,1740635440918,-500.0,0.00046574,2]
[354708797,1740635440927,-500.0,0.00046574,2]
[354708799,1740635440937,-500.0,0.00046574,2]
[354708801,1740635440946,-500.0,0.00046574,2]
[354708803,1740635440955,-500.0,0.00046574,2]
[354708805,1740635440963,-500.0,0.00046574,2]
[354708806,1740635440972,-500.0,0.00046574,2]
[354708807,1740635440981,-500.0,0.00046574,2]
[354708808,1740635440990,-500.0,0.00046574,2]
[354708809,1740635440999,-500.0,0.00046574,2]
[354708810,1740635441008,-243.00674478,0.00046574,2]
[354708811,1740635441017,-500.0,0.00046574,2]
[354708812,1740635441027,-499.99999999,0.00046574,2]
[354708813,1740635441036,-18350.04,0.00046574,120]
[354708814,1740635441045,-500.0,0.00046575,120]
[354708815,1740635441055,-312.648346,0.00046575,120]
[354708816,1740635441064,-168.66369259,0.00046575,120]
[354708817,1740635441073,-500.0,0.00046575,120]
[354708818,1740635441082,-500.0,0.00046575,120]
[354708819,1740635441091,-500.0,0.00046575,120]
[354708820,1740635441101,-379.56658301,0.00046575,120]
[354708821,1740635441110,-276.1717,0.00046575,120]
[354708822,1740635441119,-500.0,0.00046575,120]
[354708823,1740635441128,-500.0,0.00046575,120]
[354708824,1740635441137,-500.0,0.00046575,120]
[354708825,1740635441147,-500.0,0.00046575,120]
[354708826,1740635441156,-500.0,0.00046575,120]
[354708827,1740635441166,-500.0,0.00046575,120]
[354708828,1740635441175,-500.0,0.00046575,120]
[354708829,1740635441184,-500.0,0.00046575,120]
[354708830,1740635441193,-500.0,0.00046575,120]
[354708831,1740635441203,-500.0,0.00046575,120]
[354708832,1740635441212,-500.0,0.00046575,120]
[354708833,1740635441224,-500.0,0.00046575,120]
[354708834,1740635441234,-500.0,0.00046575,120]
[354708835,1740635441243,-645.65,0.00046575,120]
[354708836,1740635441253,-500.0,0.00046575,120]
[354708837,1740635441263,-500.0,0.00046575,120]
[354708838,1740635441272,-500.0,0.00046575,120]
[354708839,1740635441281,-500.0,0.00046575,120]
[354708840,1740635441290,-500.0,0.00046575,120]
[354708841,1740635441299,-500.0,0.00046575,120]
[354708842,1740635441311,-500.0,0.00046575,120]
[354708843,1740635441320,-500.0,0.00046575,120]
[354708844,1740635441329,-500.0,0.00046575,120]
[354708845,1740635441338,-500.0,0.00046575,120]
[354708846,1740635441347,-503.5184965,0.00046575,120]
[354708847,1740635441356,-500.0,0.00046575,120]
[354708848,1740635441366,-504.75745484,0.00046575,120]
[354708849,1740635441375,-500.0,0.00046575,120]
[354708850,1740635441384,-500.0,0.00046575,120]
[354708851,1740635441393,-434.49799564,0.00046575,120]
[354708852,1740635441407,-65.50200436,0.00046575,120]
[354708853,1740635441416,-500.0,0.00046575,120]
[354708854,1740635441425,-500.0,0.00046575,120]
[354708855,1740635441434,-501.04,0.00046575,120]
[354708856,1740635441443,-500.0,0.00046575,120]
[354708857,1740635441452,-500.0,0.00046575,120]
[354708858,1740635441462,-500.0,0.00046575,120]
[354708859,1740635441471,-230.64363875,0.00046575,120]
[354708883,1740635443732,-269.35636125,0.00046575,120]
[354708884,1740635443742,-500.0,0.00046575,120]
[354708885,1740635443751,-246.71956822,0.00046575,120]
[354708886,1740635443760,-819.92,0.00046575,120]
[354708887,1740635443770,-500.0,0.00046575,120]
[354708888,1740635443779,-537.53283438,0.00046575,120]
[354708889,1740635443788,-500.0,0.00046575,120]
[354708890,1740635443797,-500.0,0.00046575,120]
[354708891,1740635443806,-524.66,0.00046575,120]
[354708892,1740635443815,-500.0,0.00046575,120]
[354708893,1740635443824,-500.0,0.00046575,120]
[354708894,1740635443834,-500.0,0.00046575,120]
[354708895,1740635443843,-500.0,0.00046575,120]
[354708896,1740635443852,-500.0,0.00046575,120]
[354708897,1740635443861,-500.0,0.00046575,120]
[354708898,1740635443871,-500.0,0.00046575,120]
[354708899,1740635443881,-500.0,0.00046575,120]
[354708900,1740635443891,-500.0,0.00046575,120]
[354708901,1740635443900,-500.0,0.00046575,120]
[354708902,1740635443909,-500.0,0.00046575,120]
[354708903,1740635443920,-500.0,0.00046575,120]
[354708904,1740635443930,-500.0,0.00046575,120]
[354708905,1740635443940,-1445.53,0.00046575,120]
[354708906,1740635443949,-500.0,0.00046575,120]
[354708907,1740635443959,-510.41041465,0.00046575,120]
[354708908,1740635443969,-500.0,0.00046575,120]
[354708909,1740635443978,-500.0,0.00046575,120]
[354708910,1740635443987,-500.0,0.00046575,30]
[354708911,1740635443998,-504.57925698,0.00046575,120]
[354708912,1740635444007,-500.0,0.00046575,120]
[354708913,1740635444016,-500.0,0.00046575,120]
[354708914,1740635444025,-500.0,0.00046575,120]
[354708915,1740635444035,-727.3,0.00046575,120]
[354708916,1740635444047,-500.0,0.00046575,120]
[354708917,1740635444056,-500.0,0.00046575,120]
[354708918,1740635444066,-500.0,0.00046575,120]
[354708919,1740635444075,-300.0,0.00046575,120]
[354708920,1740635444084,-500.0,0.00046575,120]
[354708921,1740635444094,-500.0,0.00046575,120]
[354708922,1740635444103,-500.0,0.00046575,120]
[354708923,1740635444113,-500.0,0.00046575,120]
[354708924,1740635444122,-500.0,0.00046575,120]
[354708925,1740635444131,-768.53,0.00046575,120]
[354708926,1740635444139,-500.0,0.00046575,120]
[354708927,1740635444148,-500.0,0.00046575,120]
[354708928,1740635444158,-500.0,0.00046575,120]
[354708929,1740635444167,-500.0,0.00046575,120]
[354708930,1740635444176,-805.02,0.00046575,120]
[354708931,1740635444185,-500.0,0.00046575,120]
[354708932,1740635444194,-1760.03,0.00046575,120]
[354708933,1740635444203,-500.0,0.00046575,120]
[354708934,1740635444212,-674.22,0.00046575,120]
[354708935,1740635444223,-507.41971641,0.00046575,120]
[354708936,1740635444235,-500.0,0.00046575,120]
[354708937,1740635444244,-1218.36,0.00046575,120]
[354708938,1740635444253,-500.0,0.00046575,120]
[354708939,1740635444262,-500.0,0.00046575,120]
[354708940,1740635444273,-500.0,0.00046575,120]
[354708941,1740635444282,-609.75,0.00046575,120]
[354708942,1740635444292,-804.51,0.00046575,120]
[354708943,1740635444303,-829.66,0.00046575,120]
[354708944,1740635444312,-981.39,0.00046575,120]
[354708945,1740635444322,-500.0,0.00046575,120]
[354708946,1740635444331,-500.0,0.00046575,120]
[354708947,1740635444341,-500.0,0.00046575,120]
[354708948,1740635444350,-805.63,0.00046575,120]
[354708949,1740635444359,-500.0,0.00046575,120]
[354708950,1740635444368,-500.0,0.00046575,120]
[354708951,1740635444378,-500.0,0.00046575,120]
[354708952,1740635444387,-500.0,0.00046575,120]
[354708953,1740635444396,-500.0,0.00046575,120]
[354708954,1740635444405,-507.15590461,0.00046575,120]
[354708955,1740635444414,-500.0,0.00046575,120]
[354708956,1740635444423,-500.0,0.00046575,120]
[354708957,1740635444433,-801.7,0.00046575,120]
[354708958,1740635444442,-500.0,0.00046575,120]
[354708959,1740635444451,-500.0,0.00046575,120]
[354708960,1740635444460,-500.0,0.00046575,120]
[354708961,1740635444469,-500.0,0.00046575,30]
[354708962,1740635444478,-500.0,0.00046575,120]
[354708963,1740635444487,-709.62,0.00046575,120]
[354708964,1740635444498,-500.0,0.00046575,120]
[354708965,1740635444508,-919.2,0.00046575,120]
[354708966,1740635444517,-504.79698429,0.00046575,120]
[354708967,1740635444527,-500.0,0.00046575,120]
[354708968,1740635444537,-500.0,0.00046575,120]
[354708969,1740635444546,-1341.12,0.00046575,120]
[354708970,1740635444556,-640.98,0.00046575,120]
[354708971,1740635444566,-1337.03,0.00046575,120]
[354708972,1740635444575,-500.0,0.00046575,120]
[354708973,1740635444586,-511.33,0.00046575,120]
[354708974,1740635444595,-500.0,0.00046575,120]
[354708975,1740635444603,-1078.3,0.00046575,120]
[354708976,1740635444612,-500.0,0.00046575,120]
[354708977,1740635444622,-500.0,0.00046575,120]
[354708978,1740635444631,-500.0,0.00046575,120]
[354708979,1740635444641,-500.0,0.00046575,120]
[354708980,1740635444650,-501.79764213,0.00046575,120]
[354708981,1740635444659,-500.0,0.00046575,120]
[354708982,1740635444668,-401.69908894,0.00046575,120]
[354708983,1740635444678,-500.0,0.00046575,120]
[354708984,1740635444687,-500.0,0.00046575,120]
[354708985,1740635444696,-500.0,0.00046575,120]
[354708986,1740635444705,-486.83627289,0.00046575,120]
[354708987,1740635444714,-500.0,0.00046575,120]
[354708988,1740635444723,-1448.85,0.00046575,120]
[354708989,1740635444732,-500.0,0.00046575,30]
[354708991,1740635444742,-500.0,0.00046575,120]
[354708992,1740635444751,-1021.7,0.00046575,120]
[354708993,1740635444761,-715.4,0.00046575,120]
[354708994,1740635444770,-500.0,0.00046575,120]
[354708995,1740635444780,-500.0,0.00046575,120]
[354708996,1740635444789,-537.4,0.00046575,120]
[354708997,1740635444799,-500.0,0.00046575,120]
[354708998,1740635444808,-621.06,0.00046575,120]
[354708999,1740635444817,-500.0,0.00046575,120]
[354709000,1740635444826,-500.0,0.00046575,120]
[354709001,1740635444836,-500.0,0.00046575,120]
[354709002,1740635444845,-555.0770785,0.00046575,120]
[354709003,1740635444855,-501.59463154,0.00046575,120]
[354709004,1740635444865,-500.0,0.00046575,120]
[354709005,1740635444874,-500.0,0.00046575,120]
[354709006,1740635444883,-591.38,0.00046575,120]
[354709007,1740635444892,-500.0,0.00046575,120]
[354709009,1740635444901,-335.03568069,0.00046575,120]
[354709011,1740635444911,-500.0,0.00046575,120]
[354709013,1740635444919,-500.0,0.00046575,120]
[354709015,1740635444929,-500.0,0.00046575,120]
[354709017,1740635444938,-500.0,0.00046575,120]
[354709018,1740635444947,-651.52,0.00046575,120]
[354709019,1740635444956,-500.0,0.00046575,120]
[354709020,1740635444965,-500.0,0.00046575,120]
[354709021,1740635444975,-5919.66,0.00046575,120]
[354709022,1740635444984,-500.0,0.00046575,120]
[354709023,1740635444994,-627.72,0.00046575,120]
[354709024,1740635445003,-2013.47985564,0.00046575,120]
[354709030,1740635469154,-150.0,0.00044475,2]
[354709032,1740635762915,-150.0,0.00044475,2]
[354709036,1740636169004,-150.0,0.00044475,2]
[354709037,1740636169034,-156.29837776,0.00046473,120]
[354709038,1740636169060,-150.0,0.00046538,14]
[354709039,1740636169083,-150.0,0.00046538,14]
[354709040,1740636169106,-500.0,0.00046573,10]
[354709041,1740636169130,-500.0,0.00046573,7]
[354709042,1740636169155,-500.0,0.00046573,10]
[354709043,1740636169181,-500.0,0.00046574,2]
[354709044,1740636169206,-500.0,0.00046574,2]
[354709045,1740636169499,-500.0,0.00046574,2]
[354709046,1740636169536,-500.0,0.00046574,2]
[354709047,1740636169561,-500.0,0.00046574,2]
[354709048,1740636169584,-500.0,0.00046574,2]
[354709049,1740636169608,-500.0,0.00046574,2]
[354709050,1740636169632,-524.30067449,0.00046574,2]
[354709051,1740636169657,-500.0,0.00046574,2]
[354709052,1740636169682,-157.24248669,0.00046574,77]
[354709053,1740636169705,-17585.45,0.00046574,120]
[354709054,1740636169729,-31919.3078993,0.00046575,33]
[354709055,1740636169752,-3703.32165911,0.00046575,5]
[354709056,1740636169774,-500.0,0.00046575,120]
[354709057,1740636169799,-500.0,0.00046575,120]
[354709058,1740636169822,-500.0,0.00046575,120]
[354709059,1740636169844,-500.0,0.00046575,120]
[354709060,1740636169867,-802.97,0.00046575,120]
[354709061,1740636169891,-500.0,0.00046575,120]
[354709062,1740636169918,-500.0,0.00046575,120]
[354709063,1740636169942,-500.0,0.00046575,120]
[354709064,1740636169968,-500.0,0.00046575,120]
[354709065,1740636169991,-500.0,0.00046575,120]
[354709066,1740636170016,-779.63,0.00046575,120]
[354709067,1740636170039,-500.0,0.00046575,120]
[354709068,1740636170062,-500.0,0.00046575,120]
[354709069,1740636170086,-619.41478684,0.00046575,120]
[354709070,1740636170110,-623.31,0.00046575,120]
[354709071,1740636170136,-500.0,0.00046575,120]
[354709072,1740636170163,-500.0,0.00046575,120]
[354709073,1740636170189,-500.0,0.00046575,120]
[354709074,1740636170216,-500.0,0.00046575,120]
[354709075,1740636170240,-500.0,0.00046575,120]
[354709076,1740636170265,-500.0,0.00046575,120]
[354709077,1740636170288,-500.0,0.00046575,120]
[354709078,1740636170311,-388.49287353,0.00046575,120]
[354709079,1740636170335,-500.0,0.00046575,120]
[354709080,1740636170357,-500.0,0.00046575,120]
[354709081,1740636170380,-519.61,0.00046575,120]
[354709082,1740636170404,-500.0,0.00046575,120]
[354709083,1740636170427,-500.0,0.00046575,120]
[354709084,1740636170450,-500.0,0.00046575,120]
[354709085,1740636170475,-500.0,0.00046575,120]
[354709086,1740636170498,-500.0,0.00046575,120]
[354709087,1740636170521,-500.0,0.00046575,120]
[354709088,1740636170544,-500.0,0.00046575,120]
[354709089,1740636170570,-500.0,0.00046575,120]
[354709090,1740636170592,-367.10711262,0.00046575,120]
[354709091,1740636170614,-500.0,0.00046575,120]
[354709092,1740636170640,-500.0,0.00046575,120]
[354709093,1740636170663,-500.0,0.00046575,120]
[354709094,1740636170686,-500.0,0.00046575,120]
[354709095,1740636170709,-500.0,0.00046575,120]
[354709096,1740636170732,-500.0,0.00046575,120]
[354709097,1740636170755,-500.0,0.00046575,120]
[354709098,1740636170778,-500.0,0.00046575,120]
[354709099,1740636170802,-580.19596284,0.00046575,120]
[354709100,1740636170826,-650.57,0.00046575,120]
[354709101,1740636170849,-500.0,0.00046575,120]
[354709102,1740636170872,-500.0,0.00046575,120]
[354709103,1740636170895,-500.0,0.00046575,120]
[354709104,1740636170918,-500.0,0.00046575,120]
[354709105,1740636170941,-500.0,0.00046575,120]
[354709106,1740636170964,-500.0,0.00046575,120]
[354709107,1740636170987,-500.0,0.00046575,120]
[354709108,1740636171010,-500.0,0.00046575,120]
[354709109,1740636171033,-500.0,0.00046575,120]
[354709110,1740636171055,-517.38217029,0.00046575,120]
[354709111,1740636171077,-500.0,0.00046575,120]
[354709112,1740636171100,-500.0,0.00046575,120]
[354709113,1740636171124,-500.0,0.00046575,120]
[354709114,1740636171146,-500.0,0.00046575,120]
[354709115,1740636171169,-500.0,0.00046575,120]
[354709116,1740636171192,-500.0,0.00046575,120]
[354709117,1740636171216,-374.3303965,0.00046575,120]
[354709118,1740636171240,-500.0,0.00046575,120]
[354709119,1740636171263,-772.06,0.00046575,120]